Workbook

Sheet Calculatrice
A3: Paramètres du prêt
A4: PDSF | B4: 60000
A5: Montant du prêt1 | B5: 80000 | C5: =Calculations!P3 -> Max de $90000
A6: Taux d'intérêt2 | B6: 0.06
A7: Terme en mois | B7: 60
A9: Province | B9: BC
A10: Plan valeur variable acheté? | B10: Oui
A12: Crédit en concession du Plan valeur | B12: 5000
A14: Paramètres du Plan valeur variable
A15: Dépréciation3 | B15: =Calculations!S3 -> 0.21
A16: Inflation | B16: =Calculations!S4 -> 0.025
A17: Taxes de vente 4 | B17: 0.12
A20: Remarques
A21: 1 Credit en concession plafonnant à 150 % du PDSF
A22: 2 Taux cumulé mensuellement (le taux mensuel en vigueur est le taux soumissionné / 12)
A23: 3 Environ 21 % par année, en moyenne
A24: http://www.consumerreports.org/cro/2012/12/what-that-car-really-costs-to-own/index.htm
A25: 4 Le taux d'imposition de la TPS et de la TVP/TVQ ou de la TVH. La taxe de luxe n'est pas calculée

Sheet Calculations (hidden)
A1: Fin de mois | B1: Plan valeur variable | C1: Solde du prêt | D1: Intérêt | E1: Paiement | F1: Valeur non amortie | G1: Prix d'un véhicule neuf | H1: Engagement cumulé - prêt et remplacement | I1: Rabais total | J1: Engagement cumulé après rabais | K1: Valeur non amortie incluant le crédit en concession du Plan valeur | P1: =Calculatrice!$B$4*1.5 -> 90000
A2: 0 | B2: =MAX(C2-F2,0) -> 12800 | C2: =Calculatrice!B5 -> 80000 | D2: 0 | E2: 0 | F2: =Calculatrice!$B$4*(1+$S$5) -> 67200 | G2: =F2 -> 67200 | H2: =G2-F2+B2 -> 12800 | I2: =B2*$L$2+Calculatrice!$B$12*Calculations!$M$2 -> 0 | J2: =MAX(0,H2-I2) -> 12800 | K2: =F2+Calculatrice!$B$12 -> 72200 | P2: Message d'erreur - montant du prêt
A3: =A2+1 -> 1 | B3: =MAX(C3-F3,0) -> 12824.8118 | C3: =MAX(C2+D3-E3,0) -> 78853.37588 | D3: =Calculatrice!$B$6/12*C2 -> 400 | E3: =$P$6 -> 1546.624122 | F3: =F2*((1-$S$3)*(1+$S$4))^(1/12) -> 66028.56408 | G3: =G2*((1+$S$4)^(1/12)) -> 67338.421 | H3: =G3-F3+B3 -> 14134.66872 | I3: =B3*$L$2+Calculatrice!$B$12*Calculations!$M$2 -> 0 | J3: =MAX(0,H3-I3) -> 14134.66872 | K3: =F3+Calculatrice!$B$12 -> 71028.56408 | P3: =IF(Calculatrice!$B$5=(Calculatrice!$B$4*1.5),"","Max de $"&Calculatrice!$B$4*1.5) -> Max de $90000 | R3: Dépréciation3 | S3: 0.21
A4: 2 | B4: 12823.46991 | C4: =MAX(C3+D4-E4,0) -> 77701.01863 | D4: =Calculatrice!$B$6/12*C3 -> 394.2668794 | E4: =$P$6 -> 1546.624122 | F4: =F3*((1-$S$3)*(1+$S$4))^(1/12) -> 64877.54872 | G4: =G3*((1+$S$4)^(1/12)) -> 67477.12712 | H4: 15423.04831 | I4: =B4*$L$2+Calculatrice!$B$12*Calculations!$M$2 -> 0 | J4: 15423.04831 | K4: =F4+Calculatrice!$B$12 -> 69877.54872 | R4: Inflation | S4: 0.025
A5: 3 | B5: 12796.30164 | C5: 76542.89961 | D5: =Calculatrice!$B$6/12*C4 -> 388.5050932 | E5: 1546.624122 | F5: 63746.59796 | G5: 67616.11895 | H5: 16665.82264 | I5: =B5*$L$2+Calculatrice!$B$12*Calculations!$M$2 -> 0 | J5: 16665.82264 | K5: =F5+Calculatrice!$B$12 -> 68746.59796 | P5: Paiement mensuel | R5: Taux d'imposition | S5: =Calculatrice!B17 -> 0.12
A6: 4 | B6: 12743.62795 | C6: 75378.98998 | D6: =Calculatrice!$B$6/12*C5 -> 382.714498 | E6: 1546.624122 | F6: 62635.36203 | G6: 67755.39709 | H6: 17863.66302 | I6: =B6*$L$2+Calculatrice!$B$12*Calculations!$M$2 -> 0 | J6: 17863.66302 | K6: =F6+Calculatrice!$B$12 -> 67635.36203 | P6: =IF(Calculatrice!$B$5>(Calculatrice!$B$4*1.5),0,PMT(Calculatrice!$B$6/12,Calculatrice!$B$7,-Calculatrice!$B$5)) -> 1546.624122
A7: 5 | B7: 12665.76356 | C7: 74209.26081 | D7: =Calculatrice!$B$6/12*C6 -> 376.8949499 | E7: 1546.624122 | F7: 61543.49725 | G7: 67894.96211 | H7: 19017.22842 | I7: =B7*$L$2+Calculatrice!$B$12*Calculations!$M$2 -> 0 | J7: 19017.22842 | K7: =F7+Calculatrice!$B$12 -> 66543.49725 | R7: Plan valeur variable acheté?
A8: 6 | B8: 12563.01704 | C8: 73033.68299 | D8: =Calculatrice!$B$6/12*C7 -> 371.046304 | E8: 1546.624122 | F8: 60470.66595 | G8: 68034.81462 | H8: 20127.16571 | I8: =B8*$L$2+Calculatrice!$B$12*Calculations!$M$2 -> 0 | J8: 20127.16571 | K8: =F8+Calculatrice!$B$12 -> 65470.66595 | R8: Oui
A9: 7 | B9: 12435.69095 | C9: 71852.22728 | D9: =Calculatrice!$B$6/12*C8 -> 365.168415 | E9: 1546.624122 | F9: 59416.53633 | G9: 68174.9552 | H9: 21194.10982 | I9: =B9*$L$2+Calculatrice!$B$12*Calculations!$M$2 -> 0 | J9: 21194.10982 | K9: =F9+Calculatrice!$B$12 -> 64416.53633 | R9: Non
A10: 8 | B10: 12284.08191 | C10: 70664.8643 | D10: =Calculatrice!$B$6/12*C9 -> 359.2611364 | E10: 1546.624122 | F10: 58380.78238 | G10: 68315.38444 | H10: 22218.68397 | I10: =B10*$L$2+Calculatrice!$B$12*Calculations!$M$2 -> 0 | J10: 22218.68397 | K10: =F10+Calculatrice!$B$12 -> 63380.78238
A11: 9 | B11: 12108.48071 | C11: 69471.5645 | D11: =Calculatrice!$B$6/12*C10 -> 353.3243215 | E11: 1546.624122 | F11: 57363.08379 | G11: 68456.10295 | H11: 23201.49987 | I11: =B11*$L$2+Calculatrice!$B$12*Calculations!$M$2 -> 0 | J11: 23201.49987 | K11: =F11+Calculatrice!$B$12 -> 62363.08379 | R11: Privilège Plan valeur
A12: 10 | B12: 11909.1724 | C12: 68272.2982 | D12: =Calculatrice!$B$6/12*C11 -> 347.3578225 | E12: 1546.624122 | F12: 56363.1258 | G12: 68597.11131 | H12: 24143.15791 | I12: =B12*$L$2+Calculatrice!$B$12*Calculations!$M$2 -> 0 | J12: 24143.15791 | K12: =F12+Calculatrice!$B$12 -> 61363.1258 | R12: =IF(Calculatrice!$B$10=Calculations!$R$8,0,0) -> 0
A13: 11 | B13: 11686.43641 | C13: 67067.03556 | D13: =Calculatrice!$B$6/12*C12 -> 341.361491 | E13: 1546.624122 | F13: 55380.59916 | G13: 68738.41013 | H13: 25044.24738 | I13: =B13*$L$2+Calculatrice!$B$12*Calculations!$M$2 -> 0 | J13: 25044.24738 | K13: =F13+Calculatrice!$B$12 -> 60380.59916 | R13: =IF(Calculatrice!$B$10=Calculations!$R$8,5000,5000) -> 5000
A14: 12 | B14: 11440.54662 | C14: 65855.74662 | D14: =Calculatrice!$B$6/12*C13 -> 335.3351778 | E14: 1546.624122 | F14: 54415.2 | G14: 68880 | H14: 25905.34662 | I14: =B14*$L$2+Calculatrice!$B$12*Calculations!$M$2 -> 0 | J14: 25905.34662 | K14: =F14+Calculatrice!$B$12 -> 59415.2 | R14: =IF(Calculatrice!$B$10=Calculations!$R$8,"",7500) -> 
A15: 13 | B15: 11171.77147 | C15: 64638.40123 | D15: =Calculatrice!$B$6/12*C14 -> 329.2787331 | E15: 1546.624122 | F15: 53466.62976 | G15: 69021.88152 | H15: 26727.02323 | I15: =B15*$L$2+Calculatrice!$B$12*Calculations!$M$2 -> 0 | J15: 26727.02323 | K15: =F15+Calculatrice!$B$12 -> 58466.62976 | R15: =IF(Calculatrice!$B$10=Calculations!$R$8,"",10000) -> 
A16: 14 | B16: 10880.37404 | C16: 63414.96911 | D16: =Calculatrice!$B$6/12*C15 -> 323.1920062 | E16: 1546.624122 | F16: 52534.59508 | G16: 69164.0553 | H16: 27509.83426 | I16: =B16*$L$2+Calculatrice!$B$12*Calculations!$M$2 -> 0 | J16: 27509.83426 | K16: =F16+Calculatrice!$B$12 -> 57534.59508
A17: 15 | B17: 10566.61214 | C17: 62185.41984 | D17: =Calculatrice!$B$6/12*C16 -> 317.0748456 | E17: 1546.624122 | F17: 51618.8077 | G17: 69306.52193 | H17: 28254.32637 | I17: =B17*$L$2+Calculatrice!$B$12*Calculations!$M$2 -> 0 | J17: 28254.32637 | K17: =F17+Calculatrice!$B$12 -> 56618.8077
A18: 16 | B18: 10230.73841 | C18: 60949.72282 | D18: =Calculatrice!$B$6/12*C17 -> 310.9270992 | E18: 1546.624122 | F18: 50718.9844 | G18: 69449.28201 | H18: 28961.03603 | I18: =B18*$L$2+Calculatrice!$B$12*Calculations!$M$2 -> 0 | J18: 28961.03603 | K18: =F18+Calculatrice!$B$12 -> 55718.9844
A19: 17 | B19: 9873.00041 | C19: 59707.84731 | D19: =Calculatrice!$B$6/12*C18 -> 304.7486141 | E19: 1546.624122 | F19: 49834.8469 | G19: 69592.33616 | H19: 29630.48968 | I19: =B19*$L$2+Calculatrice!$B$12*Calculations!$M$2 -> 0 | J19: 29630.48968 | K19: =F19+Calculatrice!$B$12 -> 54834.8469
A20: 18 | B20: 9493.640671 | C20: 58459.76242 | D20: =Calculatrice!$B$6/12*C19 -> 298.5392365 | E20: 1546.624122 | F20: 48966.12175 | G20: 69735.68498 | H20: 30263.2039 | I20: =B20*$L$2+Calculatrice!$B$12*Calculations!$M$2 -> 0 | J20: 30263.2039 | K20: =F20+Calculatrice!$B$12 -> 53966.12175
A21: 19 | B21: 9092.896819 | C21: 57205.43711 | D21: =Calculatrice!$B$6/12*C20 -> 292.2988121 | E21: 1546.624122 | F21: 48112.54029 | G21: 69879.32908 | H21: 30859.6856 | I21: =B21*$L$2+Calculatrice!$B$12*Calculations!$M$2 -> 0 | J21: 30859.6856 | K21: =F21+Calculatrice!$B$12 -> 53112.54029
A22: 20 | B22: 8671.001639 | C22: 55944.84017 | D22: =Calculatrice!$B$6/12*C21 -> 286.0271856 | E22: 1546.624122 | F22: 47273.83854 | G22: 70023.26905 | H22: 31420.43216 | I22: =B22*$L$2+Calculatrice!$B$12*Calculations!$M$2 -> 0 | J22: 31420.43216 | K22: =F22+Calculatrice!$B$12 -> 52273.83854
A23: 21 | B23: 8228.183156 | C23: 54677.94025 | D23: =Calculatrice!$B$6/12*C22 -> 279.7242009 | E23: 1546.624122 | F23: 46449.7571 | G23: 70167.50552 | H23: 31945.93158 | I23: =B23*$L$2+Calculatrice!$B$12*Calculations!$M$2 -> 0 | J23: 31945.93158 | K23: =F23+Calculatrice!$B$12 -> 51449.7571
A24: 22 | B24: 7764.664717 | C24: 53404.70583 | D24: =Calculatrice!$B$6/12*C23 -> 273.3897013 | E24: 1546.624122 | F24: 45640.04111 | G24: 70312.03909 | H24: 32436.6627 | I24: =B24*$L$2+Calculatrice!$B$12*Calculations!$M$2 -> 0 | J24: 32436.6627 | K24: =F24+Calculatrice!$B$12 -> 50640.04111
A25: 23 | B25: 7280.665072 | C25: 52125.10524 | D25: =Calculatrice!$B$6/12*C24 -> 267.0235292 | E25: 1546.624122 | F25: 44844.44017 | G25: 70456.87038 | H25: 32893.09529 | I25: =B25*$L$2+Calculatrice!$B$12*Calculations!$M$2 -> 0 | J25: 32893.09529 | K25: =F25+Calculatrice!$B$12 -> 49844.44017
A26: 24 | B26: 6776.398442 | C26: 50839.10664 | D26: =Calculatrice!$B$6/12*C25 -> 260.6255262 | E26: 1546.624122 | F26: 44062.7082 | G26: 70602 | H26: 33315.69024 | I26: =B26*$L$2+Calculatrice!$B$12*Calculations!$M$2 -> 0 | J26: 33315.69024 | K26: =F26+Calculatrice!$B$12 -> 49062.7082
A27: 25 | B27: 6252.074603 | C27: 49546.67805 | D27: =Calculatrice!$B$6/12*C26 -> 254.1955332 | E27: 1546.624122 | F27: 43294.60345 | G27: 70747.42856 | H27: 33704.89971 | I27: =B27*$L$2+Calculatrice!$B$12*Calculations!$M$2 -> 0 | J27: 33704.89971 | K27: =F27+Calculatrice!$B$12 -> 48294.60345
A28: 26 | B28: 5707.898957 | C28: 48247.78732 | D28: =Calculatrice!$B$6/12*C27 -> 247.7333903 | E28: 1546.624122 | F28: 42539.88836 | G28: 70893.15668 | H28: 34061.16727 | I28: =B28*$L$2+Calculatrice!$B$12*Calculations!$M$2 -> 0 | J28: 34061.16727 | K28: =F28+Calculatrice!$B$12 -> 47539.88836
A29: 27 | B29: 5144.072601 | C29: 46942.40213 | D29: =Calculatrice!$B$6/12*C28 -> 241.2389366 | E29: 1546.624122 | F29: 41798.32953 | G29: 71039.18498 | H29: 34384.92804 | I29: =B29*$L$2+Calculatrice!$B$12*Calculations!$M$2 -> 0 | J29: 34384.92804 | K29: =F29+Calculatrice!$B$12 -> 46798.32953
A30: 28 | B30: 4560.792405 | C30: 45630.49002 | D30: =Calculatrice!$B$6/12*C29 -> 234.7120107 | E30: 1546.624122 | F30: 41069.69762 | G30: 71185.51406 | H30: 34676.60885 | I30: =B30*$L$2+Calculatrice!$B$12*Calculations!$M$2 -> 0 | J30: 34676.60885 | K30: =F30+Calculatrice!$B$12 -> 46069.69762
A31: 29 | B31: 3958.251076 | C31: 44312.01835 | D31: =Calculatrice!$B$6/12*C30 -> 228.1524501 | E31: 1546.624122 | F31: 40353.76727 | G31: 71332.14457 | H31: 34936.62837 | I31: =B31*$L$2+Calculatrice!$B$12*Calculations!$M$2 -> 0 | J31: 34936.62837 | K31: =F31+Calculatrice!$B$12 -> 45353.76727
A32: 30 | B32: 3336.637233 | C32: 42986.95432 | D32: =Calculatrice!$B$6/12*C31 -> 221.5600918 | E32: 1546.624122 | F32: 39650.31709 | G32: 71479.07711 | H32: 35165.39725 | I32: =B32*$L$2+Calculatrice!$B$12*Calculations!$M$2 -> 0 | J32: 35165.39725 | K32: =F32+Calculatrice!$B$12 -> 44650.31709
A33: 31 | B33: 2696.135469 | C33: 41655.26497 | D33: =Calculatrice!$B$6/12*C32 -> 214.9347716 | E33: 1546.624122 | F33: 38959.1295 | G33: 71626.3123 | H33: 35363.31827 | I33: =B33*$L$2+Calculatrice!$B$12*Calculations!$M$2 -> 0 | J33: 35363.31827 | K33: =F33+Calculatrice!$B$12 -> 43959.1295
A34: 32 | B34: =MAX(C34-F34,0) -> 2036.926418 | C34: 40316.91717 | D34: =Calculatrice!$B$6/12*C33 -> 208.2763248 | E34: 1546.624122 | F34: 38279.99075 | G34: 71773.85078 | H34: 35530.78644 | I34: =B34*$L$2+Calculatrice!$B$12*Calculations!$M$2 -> 0 | J34: 35530.78644 | K34: =F34+Calculatrice!$B$12 -> 43279.99075
A35: =A34+1 -> 33 | B35: 1359.186826 | C35: 38971.87764 | D35: =Calculatrice!$B$6/12*C34 -> 201.5845859 | E35: 1546.624122 | F35: 37612.69081 | G35: 71921.69316 | H35: 35668.18918 | I35: =B35*$L$2+Calculatrice!$B$12*Calculations!$M$2 -> 0 | J35: 35668.18918 | K35: =F35+Calculatrice!$B$12 -> 42612.69081
A36: 34 | B36: 663.0896096 | C36: 37620.1129 | D36: =Calculatrice!$B$6/12*C35 -> 194.8593882 | E36: 1546.624122 | F36: 36957.02329 | G36: 72069.84007 | H36: 35775.90639 | I36: =B36*$L$2+Calculatrice!$B$12*Calculations!$M$2 -> 0 | J36: 35775.90639 | K36: =F36+Calculatrice!$B$12 -> 41957.02329
A37: 35 | B37: 0 | C37: 36261.58934 | D37: =Calculatrice!$B$6/12*C36 -> 188.1005645 | E37: 1546.624122 | F37: 36312.78542 | G37: 72218.29214 | H37: 35905.50672 | I37: =B37*$L$2+Calculatrice!$B$12*Calculations!$M$2 -> 0 | J37: 35905.50672 | K37: =F37+Calculatrice!$B$12 -> 41312.78542
A38: 36 | B38: 0 | C38: 34896.27317 | D38: =Calculatrice!$B$6/12*C37 -> 181.3079467 | E38: 1546.624122 | F38: 35679.77796 | G38: 72367.05 | H38: 36687.27204 | I38: =B38*$L$2+Calculatrice!$B$12*Calculations!$M$2 -> 0 | J38: 36687.27204 | K38: =F38+Calculatrice!$B$12 -> 40679.77796
A39: 37 | B39: 0 | C39: 33524.13041 | D39: =Calculatrice!$B$6/12*C38 -> 174.4813658 | E39: 1546.624122 | F39: 35057.80514 | G39: 72516.11427 | H39: 37458.30913 | I39: =B39*$L$2+Calculatrice!$B$12*Calculations!$M$2 -> 0 | J39: 37458.30913 | K39: =F39+Calculatrice!$B$12 -> 40057.80514
A40: 38 | B40: 0 | C40: 32145.12694 | D40: =Calculatrice!$B$6/12*C39 -> 167.6206521 | E40: 1546.624122 | F40: 34446.6746 | G40: 72665.4856 | H40: 38218.81099 | I40: =B40*$L$2+Calculatrice!$B$12*Calculations!$M$2 -> 0 | J40: 38218.81099 | K40: =F40+Calculatrice!$B$12 -> 39446.6746
A41: 39 | B41: 0 | C41: 30759.22845 | D41: =Calculatrice!$B$6/12*C40 -> 160.7256347 | E41: 1546.624122 | F41: 33846.19734 | G41: 72815.1646 | H41: 38968.96726 | I41: =B41*$L$2+Calculatrice!$B$12*Calculations!$M$2 -> 0 | J41: 38968.96726 | K41: =F41+Calculatrice!$B$12 -> 38846.19734
A42: 40 | B42: 0 | C42: 29366.40047 | D42: =Calculatrice!$B$6/12*C41 -> 153.7961423 | E42: 1546.624122 | F42: 33256.18765 | G42: 72965.15192 | H42: 39708.96427 | I42: =B42*$L$2+Calculatrice!$B$12*Calculations!$M$2 -> 0 | J42: 39708.96427 | K42: =F42+Calculatrice!$B$12 -> 38256.18765
A43: 41 | B43: 0 | C43: 27966.60835 | D43: =Calculatrice!$B$6/12*C42 -> 146.8320024 | E43: 1546.624122 | F43: 32676.46305 | G43: 73115.44818 | H43: 40438.98513 | I43: =B43*$L$2+Calculatrice!$B$12*Calculations!$M$2 -> 0 | J43: 40438.98513 | K43: =F43+Calculatrice!$B$12 -> 37676.46305
A44: 42 | B44: 0 | C44: 26559.81727 | D44: =Calculatrice!$B$6/12*C43 -> 139.8330418 | E44: 1546.624122 | F44: 32106.84426 | G44: 73266.05403 | H44: 41159.20977 | I44: =B44*$L$2+Calculatrice!$B$12*Calculations!$M$2 -> 0 | J44: 41159.20977 | K44: =F44+Calculatrice!$B$12 -> 37106.84426
A45: 43 | B45: 0 | C45: 25145.99224 | D45: =Calculatrice!$B$6/12*C44 -> 132.7990864 | E45: 1546.624122 | F45: 31547.15511 | G45: 73416.97011 | H45: 41869.815 | I45: =B45*$L$2+Calculatrice!$B$12*Calculations!$M$2 -> 0 | J45: 41869.815 | K45: =F45+Calculatrice!$B$12 -> 36547.15511
A46: 44 | B46: 0 | C46: 23725.09808 | D46: =Calculatrice!$B$6/12*C45 -> 125.7299612 | E46: 1546.624122 | F46: 30997.22251 | G46: 73568.19705 | H46: 42570.97454 | I46: =B46*$L$2+Calculatrice!$B$12*Calculations!$M$2 -> 0 | J46: 42570.97454 | K46: =F46+Calculatrice!$B$12 -> 35997.22251
A47: 45 | B47: 0 | C47: 22297.09944 | D47: =Calculatrice!$B$6/12*C46 -> 118.6254904 | E47: 1546.624122 | F47: 30456.87638 | G47: 73719.73549 | H47: 43262.85911 | I47: =B47*$L$2+Calculatrice!$B$12*Calculations!$M$2 -> 0 | J47: 43262.85911 | K47: =F47+Calculatrice!$B$12 -> 35456.87638
A48: 46 | B48: 0 | C48: 20861.96082 | D48: =Calculatrice!$B$6/12*C47 -> 111.4854972 | E48: 1546.624122 | F48: 29925.94961 | G48: 73871.58607 | H48: 43945.63646 | I48: =B48*$L$2+Calculatrice!$B$12*Calculations!$M$2 -> 0 | J48: 43945.63646 | K48: =F48+Calculatrice!$B$12 -> 34925.94961
A49: 47 | B49: 0 | C49: 19419.6465 | D49: =Calculatrice!$B$6/12*C48 -> 104.3098041 | E49: 1546.624122 | F49: 29404.278 | G49: 74023.74945 | H49: 44619.47145 | I49: =B49*$L$2+Calculatrice!$B$12*Calculations!$M$2 -> 0 | J49: 44619.47145 | K49: =F49+Calculatrice!$B$12 -> 34404.278
A50: 48 | B50: 0 | C50: 17970.12061 | D50: =Calculatrice!$B$6/12*C49 -> 97.0982325 | E50: 1546.624122 | F50: 28891.70021 | G50: 74176.22625 | H50: 45284.52604 | I50: =B50*$L$2+Calculatrice!$B$12*Calculations!$M$2 -> 0 | J50: 45284.52604 | K50: =F50+Calculatrice!$B$12 -> 33891.70021
A51: 49 | B51: 0 | C51: 16513.34709 | D51: =Calculatrice!$B$6/12*C50 -> 89.85060305 | E51: 1546.624122 | F51: 28388.05771 | G51: 74329.01713 | H51: 45940.95942 | I51: =B51*$L$2+Calculatrice!$B$12*Calculations!$M$2 -> 0 | J51: 45940.95942 | K51: =F51+Calculatrice!$B$12 -> 33388.05771
A52: 50 | B52: 0 | C52: 15049.2897 | D52: =Calculatrice!$B$6/12*C51 -> 82.56673546 | E52: 1546.624122 | F52: 27893.19476 | G52: 74482.12274 | H52: 46588.92798 | I52: =B52*$L$2+Calculatrice!$B$12*Calculations!$M$2 -> 0 | J52: 46588.92798 | K52: =F52+Calculatrice!$B$12 -> 32893.19476
A53: 51 | B53: 0 | C53: 13577.91203 | D53: =Calculatrice!$B$6/12*C52 -> 75.24644852 | E53: 1546.624122 | F53: 27406.9583 | G53: 74635.54371 | H53: 47228.58542 | I53: =B53*$L$2+Calculatrice!$B$12*Calculations!$M$2 -> 0 | J53: 47228.58542 | K53: =F53+Calculatrice!$B$12 -> 32406.9583
A54: 52 | B54: 0 | C54: 12099.17747 | D54: =Calculatrice!$B$6/12*C53 -> 67.88956015 | E54: 1546.624122 | F54: 26929.19795 | G54: 74789.28071 | H54: 47860.08277 | I54: =B54*$L$2+Calculatrice!$B$12*Calculations!$M$2 -> 0 | J54: 47860.08277 | K54: =F54+Calculatrice!$B$12 -> 31929.19795
A55: 53 | B55: 0 | C55: 10613.04923 | D55: =Calculatrice!$B$6/12*C54 -> 60.49588734 | E55: 1546.624122 | F55: 26459.76596 | G55: 74943.33439 | H55: 48483.56843 | I55: =B55*$L$2+Calculatrice!$B$12*Calculations!$M$2 -> 0 | J55: 48483.56843 | K55: =F55+Calculatrice!$B$12 -> 31459.76596
A56: 54 | B56: 0 | C56: 9119.490357 | D56: =Calculatrice!$B$6/12*C55 -> 53.06524617 | E56: 1546.624122 | F56: 25998.51714 | G56: 75097.70539 | H56: 49099.18825 | I56: =B56*$L$2+Calculatrice!$B$12*Calculations!$M$2 -> 0 | J56: 49099.18825 | K56: =F56+Calculatrice!$B$12 -> 30998.51714
A57: 55 | B57: 0 | C57: 7618.463687 | D57: =Calculatrice!$B$6/12*C56 -> 45.59745179 | E57: 1546.624122 | F57: 25545.30885 | G57: 75252.39436 | H57: 49707.08551 | I57: =B57*$L$2+Calculatrice!$B$12*Calculations!$M$2 -> 0 | J57: 49707.08551 | K57: =F57+Calculatrice!$B$12 -> 30545.30885
A58: 56 | B58: 0 | C58: 6109.931883 | D58: =Calculatrice!$B$6/12*C57 -> 38.09231843 | E58: 1546.624122 | F58: 25100.00093 | G58: 75407.40197 | H58: 50307.40104 | I58: =B58*$L$2+Calculatrice!$B$12*Calculations!$M$2 -> 0 | J58: 50307.40104 | K58: =F58+Calculatrice!$B$12 -> 30100.00093
A59: 57 | B59: 0 | C59: 4593.85742 | D59: =Calculatrice!$B$6/12*C58 -> 30.54965941 | E59: 1546.624122 | F59: 24662.45565 | G59: 75562.72888 | H59: 50900.27323 | I59: =B59*$L$2+Calculatrice!$B$12*Calculations!$M$2 -> 0 | J59: 50900.27323 | K59: =F59+Calculatrice!$B$12 -> 29662.45565
A60: 58 | B60: 0 | C60: 3070.202584 | D60: =Calculatrice!$B$6/12*C59 -> 22.9692871 | E60: 1546.624122 | F60: 24232.5377 | G60: 75718.37573 | H60: 51485.83803 | I60: =B60*$L$2+Calculatrice!$B$12*Calculations!$M$2 -> 0 | J60: 51485.83803 | K60: =F60+Calculatrice!$B$12 -> 29232.5377
A61: 59 | B61: 0 | C61: 1538.929475 | D61: =Calculatrice!$B$6/12*C60 -> 15.35101292 | E61: 1546.624122 | F61: 23810.11411 | G61: 75874.34318 | H61: 52064.22907 | I61: =B61*$L$2+Calculatrice!$B$12*Calculations!$M$2 -> 0 | J61: 52064.22907 | K61: =F61+Calculatrice!$B$12 -> 28810.11411
A62: 60 | B62: 0 | C62: 8.594724932e-11 | D62: =Calculatrice!$B$6/12*C61 -> 7.694647375 | E62: 1546.624122 | F62: 23395.05424 | G62: 76030.63191 | H62: 52635.57766 | I62: =B62*$L$2+Calculatrice!$B$12*Calculations!$M$2 -> 0 | J62: 52635.57766 | K62: =F62+Calculatrice!$B$12 -> 28395.05424
A63: 61 | B63: 0 | C63: 0 | D63: =Calculatrice!$B$6/12*C62 -> 4.297362466e-13 | E63: 1546.624122 | F63: 22987.22973 | G63: 76187.24256 | H63: 53200.01282 | I63: =B63*$L$2+Calculatrice!$B$12*Calculations!$M$2 -> 0 | J63: 53200.01282 | K63: =F63+Calculatrice!$B$12 -> 27987.22973
A64: 62 | B64: 0 | C64: 0 | D64: =Calculatrice!$B$6/12*C63 -> 0 | E64: 1546.624122 | F64: 22586.51446 | G64: 76344.1758 | H64: 53757.66135 | I64: =B64*$L$2+Calculatrice!$B$12*Calculations!$M$2 -> 0 | J64: 53757.66135 | K64: =F64+Calculatrice!$B$12 -> 27586.51446
A65: 63 | B65: 0 | C65: 0 | D65: =Calculatrice!$B$6/12*C64 -> 0 | E65: 1546.624122 | F65: 22192.78448 | G65: 76501.43231 | H65: 54308.64783 | I65: =B65*$L$2+Calculatrice!$B$12*Calculations!$M$2 -> 0 | J65: 54308.64783 | K65: =F65+Calculatrice!$B$12 -> 27192.78448
A66: 64 | B66: =MAX(C66-F66,0) -> 0 | C66: 0 | D66: =Calculatrice!$B$6/12*C65 -> 0 | E66: 1546.624122 | F66: 21805.91804 | G66: 76659.01273 | H66: 54853.09469 | I66: =B66*$L$2+Calculatrice!$B$12*Calculations!$M$2 -> 0 | J66: 54853.09469 | K66: =F66+Calculatrice!$B$12 -> 26805.91804
A67: =A66+1 -> 65 | B67: 0 | C67: 0 | D67: =Calculatrice!$B$6/12*C66 -> 0 | E67: 1546.624122 | F67: 21425.79548 | G67: 76816.91775 | H67: =G67-F67+B67 -> 55391.12226 | I67: =B67*$L$2+Calculatrice!$B$12*Calculations!$M$2 -> 0 | J67: =MAX(0,H67-I67) -> 55391.12226 | K67: =F67+Calculatrice!$B$12 -> 26425.79548
A68: 66 | B68: 0 | C68: =MAX(C67+D68-E68,0) -> 0 | D68: =Calculatrice!$B$6/12*C67 -> 0 | E68: =$P$6 -> 1546.624122 | F68: =F67*((1-$S$3)*(1+$S$4))^(1/12) -> 21052.29925 | G68: =G67*((1+$S$4)^(1/12)) -> 76975.14802 | H68: 55922.84877 | I68: =B68*$L$2+Calculatrice!$B$12*Calculations!$M$2 -> 0 | J68: 55922.84877 | K68: =F68+Calculatrice!$B$12 -> 26052.29925
A69: 67 | B69: 0 | C69: 0 | D69: =Calculatrice!$B$6/12*C68 -> 0 | E69: 1546.624122 | F69: 20685.31384 | G69: 77133.70422 | H69: 56448.39038 | I69: =B69*$L$2+Calculatrice!$B$12*Calculations!$M$2 -> 0 | J69: 56448.39038 | K69: =F69+Calculatrice!$B$12 -> 25685.31384
A70: 68 | B70: 0 | C70: 0 | D70: =Calculatrice!$B$6/12*C69 -> 0 | E70: 1546.624122 | F70: 20324.72575 | G70: 77292.58702 | H70: 56967.86127 | I70: =B70*$L$2+Calculatrice!$B$12*Calculations!$M$2 -> 0 | J70: 56967.86127 | K70: =F70+Calculatrice!$B$12 -> 25324.72575
A71: 69 | B71: 0 | C71: 0 | D71: =Calculatrice!$B$6/12*C70 -> 0 | E71: 1546.624122 | F71: 19970.42346 | G71: 77451.7971 | H71: 57481.37363 | I71: =B71*$L$2+Calculatrice!$B$12*Calculations!$M$2 -> 0 | J71: 57481.37363 | K71: =F71+Calculatrice!$B$12 -> 24970.42346
A72: 70 | B72: 0 | C72: 0 | D72: =Calculatrice!$B$6/12*C71 -> 0 | E72: 1546.624122 | F72: 19622.2974 | G72: 77611.33512 | H72: 57989.03772 | I72: =B72*$L$2+Calculatrice!$B$12*Calculations!$M$2 -> 0 | J72: 57989.03772 | K72: =F72+Calculatrice!$B$12 -> 24622.2974
A73: 71 | B73: 0 | C73: 0 | D73: =Calculatrice!$B$6/12*C72 -> 0 | E73: 1546.624122 | F73: 19280.2399 | G73: 77771.20176 | H73: 58490.96186 | I73: =B73*$L$2+Calculatrice!$B$12*Calculations!$M$2 -> 0 | J73: 58490.96186 | K73: =F73+Calculatrice!$B$12 -> 24280.2399
A74: 72 | B74: 0 | C74: 0 | D74: =Calculatrice!$B$6/12*C73 -> 0 | E74: 1546.624122 | F74: 18944.14517 | G74: 77931.3977 | H74: 58987.25253 | I74: =B74*$L$2+Calculatrice!$B$12*Calculations!$M$2 -> 0 | J74: 58987.25253 | K74: =F74+Calculatrice!$B$12 -> 23944.14517
A75: 73 | B75: 0 | C75: 0 | D75: =Calculatrice!$B$6/12*C74 -> 0 | E75: 1546.624122 | F75: 18613.90928 | G75: 78091.92362 | H75: 59478.01435 | I75: =B75*$L$2+Calculatrice!$B$12*Calculations!$M$2 -> 0 | J75: 59478.01435 | K75: =F75+Calculatrice!$B$12 -> 23613.90928
A76: 74 | B76: 0 | C76: 0 | D76: =Calculatrice!$B$6/12*C75 -> 0 | E76: 1546.624122 | F76: 18289.43008 | G76: 78252.7802 | H76: 59963.35012 | I76: =B76*$L$2+Calculatrice!$B$12*Calculations!$M$2 -> 0 | J76: 59963.35012 | K76: =F76+Calculatrice!$B$12 -> 23289.43008
A77: 75 | B77: 0 | C77: 0 | D77: =Calculatrice!$B$6/12*C76 -> 0 | E77: 1546.624122 | F77: 17970.60723 | G77: 78413.96811 | H77: 60443.36088 | I77: =B77*$L$2+Calculatrice!$B$12*Calculations!$M$2 -> 0 | J77: 60443.36088 | K77: =F77+Calculatrice!$B$12 -> 22970.60723
A78: 76 | B78: 0 | C78: 0 | D78: =Calculatrice!$B$6/12*C77 -> 0 | E78: 1546.624122 | F78: 17657.34213 | G78: 78575.48805 | H78: 60918.14592 | I78: =B78*$L$2+Calculatrice!$B$12*Calculations!$M$2 -> 0 | J78: 60918.14592 | K78: =F78+Calculatrice!$B$12 -> 22657.34213
A79: 77 | B79: 0 | C79: 0 | D79: =Calculatrice!$B$6/12*C78 -> 0 | E79: 1546.624122 | F79: 17349.53789 | G79: 78737.34069 | H79: 61387.8028 | I79: =B79*$L$2+Calculatrice!$B$12*Calculations!$M$2 -> 0 | J79: 61387.8028 | K79: =F79+Calculatrice!$B$12 -> 22349.53789
A80: 78 | B80: 0 | C80: 0 | D80: =Calculatrice!$B$6/12*C79 -> 0 | E80: 1546.624122 | F80: 17047.09932 | G80: 78899.52672 | H80: 61852.4274 | I80: =B80*$L$2+Calculatrice!$B$12*Calculations!$M$2 -> 0 | J80: 61852.4274 | K80: =F80+Calculatrice!$B$12 -> 22047.09932
A81: 79 | B81: 0 | C81: 0 | D81: =Calculatrice!$B$6/12*C80 -> 0 | E81: 1546.624122 | F81: 16749.93289 | G81: 79062.04683 | H81: 62312.11394 | I81: =B81*$L$2+Calculatrice!$B$12*Calculations!$M$2 -> 0 | J81: 62312.11394 | K81: =F81+Calculatrice!$B$12 -> 21749.93289
A82: 80 | B82: 0 | C82: 0 | D82: =Calculatrice!$B$6/12*C81 -> 0 | E82: 1546.624122 | F82: 16457.94668 | G82: 79224.9017 | H82: 62766.95502 | I82: =B82*$L$2+Calculatrice!$B$12*Calculations!$M$2 -> 0 | J82: 62766.95502 | K82: =F82+Calculatrice!$B$12 -> 21457.94668
A83: 81 | B83: 0 | C83: 0 | D83: =Calculatrice!$B$6/12*C82 -> 0 | E83: 1546.624122 | F83: 16171.0504 | G83: 79388.09203 | H83: 63217.04163 | I83: =B83*$L$2+Calculatrice!$B$12*Calculations!$M$2 -> 0 | J83: 63217.04163 | K83: =F83+Calculatrice!$B$12 -> 21171.0504
A84: 82 | B84: 0 | C84: 0 | D84: =Calculatrice!$B$6/12*C83 -> 0 | E84: 1546.624122 | F84: 15889.15532 | G84: 79551.6185 | H84: 63662.46318 | I84: =B84*$L$2+Calculatrice!$B$12*Calculations!$M$2 -> 0 | J84: 63662.46318 | K84: =F84+Calculatrice!$B$12 -> 20889.15532
A85: 83 | B85: 0 | C85: 0 | D85: =Calculatrice!$B$6/12*C84 -> 0 | E85: 1546.624122 | F85: 15612.17426 | G85: 79715.48181 | H85: 64103.30755 | I85: =B85*$L$2+Calculatrice!$B$12*Calculations!$M$2 -> 0 | J85: 64103.30755 | K85: =F85+Calculatrice!$B$12 -> 20612.17426
A86: 84 | B86: 0 | C86: 0 | D86: =Calculatrice!$B$6/12*C85 -> 0 | E86: 1546.624122 | F86: 15340.02155 | G86: 79879.68265 | H86: 64539.66109 | I86: =B86*$L$2+Calculatrice!$B$12*Calculations!$M$2 -> 0 | J86: 64539.66109 | K86: =F86+Calculatrice!$B$12 -> 20340.02155
A87: 85 | B87: 0 | C87: 0 | D87: =Calculatrice!$B$6/12*C86 -> 0 | E87: 1546.624122 | F87: 15072.61304 | G87: 80044.22171 | H87: 64971.60868 | I87: =B87*$L$2+Calculatrice!$B$12*Calculations!$M$2 -> 0 | J87: 64971.60868 | K87: =F87+Calculatrice!$B$12 -> 20072.61304
A88: 86 | B88: 0 | C88: 0 | D88: =Calculatrice!$B$6/12*C87 -> 0 | E88: 1546.624122 | F88: 14809.86601 | G88: 80209.09971 | H88: 65399.2337 | I88: =B88*$L$2+Calculatrice!$B$12*Calculations!$M$2 -> 0 | J88: 65399.2337 | K88: =F88+Calculatrice!$B$12 -> 19809.86601
A89: 87 | B89: 0 | C89: 0 | D89: =Calculatrice!$B$6/12*C88 -> 0 | E89: 1546.624122 | F89: 14551.69921 | G89: 80374.31732 | H89: 65822.61811 | I89: =B89*$L$2+Calculatrice!$B$12*Calculations!$M$2 -> 0 | J89: 65822.61811 | K89: =F89+Calculatrice!$B$12 -> 19551.69921
A90: 88 | B90: 0 | C90: 0 | D90: =Calculatrice!$B$6/12*C89 -> 0 | E90: 1546.624122 | F90: 14298.03279 | G90: 80539.87525 | H90: 66241.84246 | I90: =B90*$L$2+Calculatrice!$B$12*Calculations!$M$2 -> 0 | J90: 66241.84246 | K90: =F90+Calculatrice!$B$12 -> 19298.03279
A91: 89 | B91: 0 | C91: 0 | D91: =Calculatrice!$B$6/12*C90 -> 0 | E91: 1546.624122 | F91: 14048.78831 | G91: 80705.77421 | H91: 66656.9859 | I91: =B91*$L$2+Calculatrice!$B$12*Calculations!$M$2 -> 0 | J91: 66656.9859 | K91: =F91+Calculatrice!$B$12 -> 19048.78831
A92: 90 | B92: 0 | C92: 0 | D92: =Calculatrice!$B$6/12*C91 -> 0 | E92: 1546.624122 | F92: 13803.88868 | G92: 80872.01489 | H92: 67068.12621 | I92: =B92*$L$2+Calculatrice!$B$12*Calculations!$M$2 -> 0 | J92: 67068.12621 | K92: =F92+Calculatrice!$B$12 -> 18803.88868
A93: 91 | B93: 0 | C93: 0 | D93: =Calculatrice!$B$6/12*C92 -> 0 | E93: 1546.624122 | F93: 13563.25815 | G93: 81038.598 | H93: 67475.33984 | I93: =B93*$L$2+Calculatrice!$B$12*Calculations!$M$2 -> 0 | J93: 67475.33984 | K93: =F93+Calculatrice!$B$12 -> 18563.25815
A94: 92 | B94: 0 | C94: 0 | D94: =Calculatrice!$B$6/12*C93 -> 0 | E94: 1546.624122 | F94: 13326.82232 | G94: 81205.52424 | H94: 67878.70192 | I94: =B94*$L$2+Calculatrice!$B$12*Calculations!$M$2 -> 0 | J94: 67878.70192 | K94: =F94+Calculatrice!$B$12 -> 18326.82232
A95: 93 | B95: 0 | C95: 0 | D95: =Calculatrice!$B$6/12*C94 -> 0 | E95: 1546.624122 | F95: 13094.50806 | G95: 81372.79433 | H95: 68278.28627 | I95: =B95*$L$2+Calculatrice!$B$12*Calculations!$M$2 -> 0 | J95: 68278.28627 | K95: =F95+Calculatrice!$B$12 -> 18094.50806
A96: 94 | B96: 0 | C96: 0 | D96: =Calculatrice!$B$6/12*C95 -> 0 | E96: 1546.624122 | F96: 12866.24352 | G96: 81540.40896 | H96: 68674.16544 | I96: =B96*$L$2+Calculatrice!$B$12*Calculations!$M$2 -> 0 | J96: 68674.16544 | K96: =F96+Calculatrice!$B$12 -> 17866.24352
A97: 95 | B97: 0 | C97: 0 | D97: =Calculatrice!$B$6/12*C96 -> 0 | E97: 1546.624122 | F97: 12641.95811 | G97: 81708.36885 | H97: 69066.41075 | I97: =B97*$L$2+Calculatrice!$B$12*Calculations!$M$2 -> 0 | J97: 69066.41075 | K97: =F97+Calculatrice!$B$12 -> 17641.95811
A98: 96 | B98: =MAX(C98-F98,0) -> 0 | C98: 0 | D98: =Calculatrice!$B$6/12*C97 -> 0 | E98: 1546.624122 | F98: 12421.58245 | G98: 81876.67471 | H98: 69455.09226 | I98: =B98*$L$2+Calculatrice!$B$12*Calculations!$M$2 -> 0 | J98: 69455.09226 | K98: =F98+Calculatrice!$B$12 -> 17421.58245

Sheet Renonciation
A4: Si votre véhicule était volé ou déclaré une perte partielle ou totale, le Programme privilège perte de véhicule vous aiderait à acheter un véhicule neuf faisant partie de l'inventaire de votre concessionnaire-vendeur à l'aide d'un crédit de fidélité en concession. La valeur en dollars du crédit de fidélité en concession est soit un montant fixe ou un montant variable, qui est calculé en fonction du solde résiduel de votre prêt moins le remboursement versé par votre police d'assurance automobile . Suite à la présentation de tous les détails concernant le Programme privilège perte de véhicule, et après avoir mûrement réfléchi et dûment pris en considération la question, je renonce à mon droit d'inscrire mon véhicule au Programme privilège perte de véhicule. Ainsi, j'assume l’entière responsabilité de tous les coûts connexes découlant de mon refus de participer au Programme.
A6: Les frais liés à l'achat d'un nouveau véhicule peuvent inclure :
A8: Premier paiement :
A9: Dépôt de garantie :
A10: Nouvelles plaques d'immatriculation :
A11: Pneus/jantes d'hiver :
A12: Tapis de plancher :
A13: Dispositif antivol :
A14: Démarreur à distance :
A15: Frais divers :
A17: Total :
A20: ________________________________ _________________________________________ ___________________________
A21: Nom du client Signature du client Date
A24: ________________________________ _________________________________________ ___________________________
A25: Nom du témoin Signature du témoin Date
